bitfinex/quotes_SOLUSD_20241202
["timestamp","ask_amount","ask_price","bid_price","bid_amount"]
[1733147848870,0.12549,225.98,225.85,17.41200667]
[1733147849080,0.25098,225.97,225.85,17.41200667]
[1733147851887,0.25098,225.97,225.86,12.97900667]
[1733147852074,0.12549,225.97,225.86,12.97900667]
[1733147852668,0.12549,225.97,225.85,17.41200667]
[1733147853292,0.12549,225.97,225.85,4.433]
[1733147854293,0.12549,225.96,225.85,4.433]
[1733147854581,0.12549,225.96,225.82,22.0666]
[1733147854582,0.12549,225.92,225.82,4.433]
[1733147855173,20.0,225.93,225.85,12.97900667]
[1733147855381,20.0,225.98,225.87,12.97900667]
[1733147855793,20.0,225.98,225.82,0.88331524]
[1733147855794,0.12549,225.95,225.79,4.433]
[1733147856095,0.12549,225.89,225.77,15.0062]
[1733147856392,0.25098,225.87,225.77,15.0062]
[1733147856564,0.25098,225.87,225.76,4.433]
[1733147856982,0.25098,225.87,225.76,17.41200667]
[1733147858388,0.25098,225.87,225.77,12.97900667]
[1733147860784,0.25098,225.87,225.76,12.97900667]
[1733147861504,0.25098,225.87,225.75,12.97900667]
[1733147862794,0.25098,225.87,225.74,23.776884]
[1733147863484,0.25098,225.87,225.74,36.75589067]
[1733147865299,0.25098,225.87,225.75,12.97900667]
[1733147865480,0.25098,225.87,225.74,23.776884]
[1733147865481,0.25098,225.87,225.76,12.97900667]
[1733147865887,0.25098,225.87,225.75,12.97900667]
[1733147866812,0.25098,225.87,225.74,36.75589067]
[1733147867975,0.25098,225.87,225.73,12.97900667]
[1733147867976,0.25098,225.85,225.73,12.97900667]
[1733147868205,1.1068,225.86,225.74,12.97900667]
[1733147868410,1.1068,225.86,225.75,12.97900667]
[1733147868903,1.1068,225.86,225.76,12.97900667]
[1733147869108,1.1068,225.86,225.75,12.97900667]
[1733147872509,1.1068,225.86,225.74,13.86252367]
[1733147873111,0.25098,225.87,225.75,12.97900667]
[1733147873609,0.25098,225.87,225.75,12.72817582]
[1733147874319,0.12549,225.88,225.77,8.29517582]
[1733147874799,0.37647,225.88,225.77,8.29517582]
[1733147875109,1.48317,225.88,225.77,8.29517582]
[1733147876018,1.48317,225.88,225.76,8.29517582]
[1733147876996,1.48317,225.88,225.75,12.72817582]
[1733147877498,1.48317,225.88,225.75,4.433]
[1733147878193,1.48317,225.88,225.74,4.433]
[1733147878397,20.0,225.8,225.69,8.29517582]
[1733147878912,20.0,225.8,225.68,8.29517582]
[1733147879297,20.0,225.8,225.69,4.433]
[1733147880095,20.0,225.8,225.69,12.72817582]
[1733147880708,1.6454,225.82,225.75,8.29517582]
[1733147880709,0.5383,225.82,225.75,8.29517582]
[1733147880914,6.2091,225.83,225.76,8.29517582]
[1733147881117,6.2091,225.83,225.75,8.29517582]
[1733147881315,6.2091,225.83,225.74,8.29517582]
[1733147881513,6.2091,225.83,225.73,8.29517582]
[1733147881817,6.2091,225.83,225.73,12.72817582]
[1733147882116,6.2091,225.83,225.74,8.29517582]
[1733147882495,0.37647,225.85,225.75,8.29517582]
[1733147882913,0.37647,225.85,225.74,12.72817582]
[1733147883116,0.37647,225.85,225.73,8.29517582]
[1733147883419,0.37647,225.85,225.71,23.776884]
[1733147883420,0.25098,225.83,225.71,23.776884]
[1733147883825,0.12549,225.82,225.69,12.9679571]
[1733147884727,0.25098,225.81,225.69,12.9679571]
[1733147886512,0.25098,225.79,225.69,23.776884]
[1733147886711,0.25098,225.79,225.68,12.9679571]
[1733147886899,0.25098,225.79,225.69,12.9679571]
[1733147887340,0.25098,225.79,225.68,36.7448411]
[1733147889012,0.25098,225.79,225.69,12.9679571]
[1733147890618,0.25098,225.79,225.68,36.7448411]
[1733147890800,0.25098,225.79,225.69,17.4009571]
[1733147891005,0.25098,225.79,225.7,23.776884]
[1733147891725,20.0,225.81,225.71,12.9679571]
[1733147892025,1.1069,225.84,225.76,23.776884]
[1733147892722,1.1069,225.84,225.75,23.776884]
[1733147894099,0.5383,225.87,225.75,23.776884]
[1733147894100,0.5383,225.87,225.79,23.776884]
[1733147894525,0.5383,225.87,225.79,36.7448411]
[1733147894700,1.1066,225.92,225.81,12.9679571]
[1733147894906,1.1066,225.92,225.82,36.7448411]
[1733147895725,7.1476,225.93,225.84,23.776884]
[1733147896419,7.1476,225.93,225.84,36.7448411]
[1733147896929,7.1476,225.93,225.86,23.776884]
[1733147897810,7.1476,225.93,225.85,23.776884]
[1733147899532,0.37647,225.95,225.85,23.776884]
[1733147899715,20.0,225.96,225.86,15.6084]
[1733147899930,20.0,225.96,225.89,23.776884]
[1733147900124,20.0,225.99,225.89,23.776884]
[1733147900627,1.1062,226.0,225.89,23.776884]
[1733147900813,0.25098,225.99,225.87,36.7448411]
[1733147901017,0.25098,225.99,225.84,12.9679571]
[1733147901228,20.25098,225.99,225.85,23.776884]
[1733147901736,0.25098,225.97,225.85,23.776884]
[1733147902716,0.12549,225.97,225.85,23.776884]
[1733147902905,0.12549,225.97,225.85,13.85107987]
[1733147903338,0.25098,225.98,225.86,36.7448411]
[1733147903513,0.25098,225.98,225.87,9.1696961]
[1733147903714,136.26487989,226.04,225.9,32.06353177]
[1733147903906,0.12549,226.03,225.9,23.776884]
[1733147904128,0.37647,226.03,225.9,23.776884]
[1733147904520,133.4718,226.04,225.9,23.776884]
[1733147904733,1.106,226.04,225.9,23.776884]
[1733147904939,0.12549,225.99,225.82,23.776884]
[1733147905127,0.25098,225.99,225.81,15.4732]
[1733147905432,20.0,225.95,225.82,8.28664777]
[1733147905607,20.0,225.95,225.84,4.433]
[1733147906733,20.0,225.95,225.85,28.209884]
[1733147907635,20.0,225.95,225.85,23.776884]
[1733147907826,20.0,225.95,225.84,23.776884]
[1733147909863,0.12549,225.93,225.82,4.433]
[1733147910038,0.12549,225.93,225.81,15.4732]
[1733147911237,0.12549,225.93,225.82,23.776884]
[1733147911623,21.35748,225.94,225.82,23.776884]
[1733147911624,21.1065,225.94,225.83,13.835945]
[1733147911833,21.1065,225.94,225.86,23.776884]
[1733147913427,20.0,225.94,225.86,23.776884]
[1733147913632,8.2946,225.98,225.87,36.72956984]
[1733147913841,0.37647,225.97,225.87,23.776884]
[1733147914038,0.25098,225.97,225.87,23.776884]
[1733147914614,0.37647,225.97,225.87,23.776884]
[1733147914839,8.2946,225.98,225.89,12.95268584]
[1733147915037,8.2946,225.98,225.87,23.776884]
[1733147915038,20.0,225.95,225.87,23.776884]
[1733147915326,20.0,225.95,225.85,36.72956984]
[1733147915745,20.0,225.95,225.87,23.776884]
[1733147917536,20.0,225.95,225.9,23.776884]
[1733147917844,0.5383,225.98,225.9,23.776884]
[1733147918223,0.5383,225.98,225.9,12.95268584]
[1733147918442,0.37647,226.01,225.91,36.72956984]
[1733147918651,0.37647,226.01,225.91,23.776884]
[1733147919644,20.0,226.0,225.91,23.776884]
[1733147921338,20.0,226.0,225.9,36.72956984]
[1733147923253,20.0,226.0,225.91,0.88285594]
[1733147923626,20.0,226.0,225.92,23.776884]
[1733147925843,20.0,226.0,225.91,23.776884]
[1733147926147,20.0,226.0,225.9,23.776884]
[1733147928759,20.0,226.0,225.9,36.72956984]
[1733147928929,20.0,226.0,225.92,36.72956984]
[1733147929126,20.0,226.0,225.93,37.61244039]
[1733147929351,20.0,226.0,225.93,24.65975455]
[1733147929538,20.0,226.0,225.93,23.776884]
[1733147930946,20.0,226.0,225.91,23.776884]
[1733147931146,20.0,226.0,225.85,17.720373]
[1733147931147,0.37647,225.99,225.85,17.720373]
[1733147931333,0.37647,225.99,225.87,8.28339735]
[1733147931740,0.37647,225.99,225.88,8.28339735]
[1733147932127,0.37647,225.99,225.89,8.28339735]
[1733147932758,0.37647,225.99,225.9,23.776884]
[1733147933373,0.37647,225.99,225.88,23.776884]
[1733147933570,0.37647,225.99,225.88,8.28339735]
[1733147933857,0.37647,225.99,225.89,23.776884]
[1733147936275,20.0,226.0,225.89,8.28339735]
[1733147936565,20.0,226.0,225.9,32.06028135]
[1733147937965,20.0,226.0,225.9,23.776884]
[1733147939066,0.37647,225.99,225.88,23.776884]
[1733147939566,0.37647,225.99,225.88,32.06028135]
[1733147939772,0.37647,225.99,225.88,23.776884]
[1733147940264,0.37647,225.99,225.88,32.06028135]
[1733147940663,20.0,226.0,225.9,23.776884]
[1733147940843,20.0,226.0,225.92,32.06028135]
[1733147942179,7.163,226.03,225.94,23.776884]
[1733147942762,7.163,226.03,225.93,23.776884]
[1733147943448,20.0,226.0,225.93,32.06028135]
[1733147943770,20.0,226.0,225.93,23.776884]
[1733147944144,20.0,226.0,225.92,23.776884]
[1733147944649,20.0,226.0,225.88,9.16618717]
[1733147945058,20.0,226.0,225.89,8.28339735]
[1733147945660,20.0,226.0,225.9,8.28339735]
[1733147945866,20.0,226.0,225.92,8.28339735]
[1733147946058,20.0,226.0,225.93,23.776884]
[1733147946256,20.0,226.0,225.91,23.776884]
[1733147947664,20.0,226.0,225.9,8.28339735]
[1733147948353,20.0,226.0,225.92,8.28339735]
[1733147948773,20.0,226.0,225.93,8.28339735]
[1733147949069,0.5383,226.08,225.96,8.28339735]
[1733147949480,0.5383,226.08,225.97,8.28339735]
[1733147949951,0.5383,226.08,225.94,0.88270609]
[1733147950153,0.5383,226.08,225.94,8.28339735]
[1733147950347,1.35678,226.07,225.93,8.28339735]
[1733147950559,1.35678,226.07,225.94,8.28339735]
[1733147951280,20.12549,226.06,225.94,8.28339735]
[1733147951463,20.0,226.06,225.95,8.28339735]
[1733147951662,20.0,226.06,225.96,8.28339735]
[1733147952363,20.0,226.06,225.95,8.28339735]
[1733147954470,20.0,226.06,225.93,0.88271115]
[1733147954655,20.0,226.06,225.9,15.8331]
[1733147954656,0.37647,226.05,225.91,8.28339735]
[1733147954861,20.0,226.02,225.91,8.28339735]
[1733147955585,20.0,226.02,225.92,4.433]
[1733147955785,20.0,226.02,225.92,8.28339735]
[1733147956479,20.0,226.02,225.93,8.28339735]
[1733147956653,21.1059,226.06,225.94,8.28339735]
[1733147956977,20.0,226.02,225.95,8.28339735]
[1733147957589,0.37647,226.05,225.95,8.28339735]
[1733147958082,0.37647,226.05,225.93,8.28339735]
[1733147958268,0.37647,226.05,225.94,8.28339735]
[1733147958866,0.37647,226.05,225.95,8.28339735]
[1733147959666,21.1059,226.06,225.95,8.28339735]
[1733147959877,21.1059,226.06,225.96,8.28339735]
[1733147960076,0.5383,226.08,225.97,8.28339735]
[1733147960675,0.5383,226.08,225.98,8.28339735]
[1733147961584,20.0,226.06,225.98,8.28339735]
[1733147961788,0.5383,226.08,226.0,8.28339735]
[1733147962488,0.5383,226.08,225.99,8.28339735]
[1733147962670,0.5383,226.08,225.96,0.88249559]
[1733147962862,0.5383,226.08,225.97,8.28339735]
[1733147963059,20.0,226.06,225.98,8.28339735]
[1733147963762,20.0,226.06,225.97,8.28339735]
[1733147965686,0.37647,226.05,225.95,4.433]
[1733147966279,0.37647,226.05,225.95,8.28339735]
[1733147966690,20.0,226.06,225.96,12.71639735]
[1733147967182,20.0,226.06,225.98,8.28339735]
[1733147967392,0.5383,226.08,225.98,8.28339735]
[1733147968275,0.25098,226.07,225.91,11.0663]
[1733147968595,20.0,226.06,225.94,8.28339735]
[1733147968769,20.0,226.06,225.95,12.71639735]
[1733147969494,20.0,226.06,225.96,8.28339735]
[1733147969678,20.0,226.06,225.97,8.28339735]
[1733147970062,20.0,226.06,225.96,12.71639735]
[1733147971973,20.0,226.06,225.97,8.28339735]
[1733147972163,20.0,226.06,225.98,8.28339735]
[1733147973985,20.0,226.06,225.97,8.28339735]
[1733147975790,20.0,226.06,225.97,4.433]
[1733147978394,20.0,226.06,225.98,4.433]
[1733147978569,20.0,226.06,225.94,0.88259959]
[1733147978769,20.0,226.06,225.98,4.433]
[1733147978985,20.0,226.06,225.98,8.28339735]
[1733147979189,20.0,226.06,226.0,8.28339735]
[1733147979490,20.0,226.11,226.02,8.28339735]
[1733147979693,20.0,226.11,226.03,4.433]
[1733147980067,0.5383,226.12,226.03,4.433]
[1733147980401,6.6462,226.14,226.04,8.28339735]
[1733147980777,6.6462,226.14,226.03,9.1658484]
[1733147980977,6.6462,226.14,226.03,0.88245105]
[1733147981186,6.6462,226.14,226.04,8.28339735]
[1733147982508,0.12549,226.12,226.0,0.88233803]
[1733147982806,6.6462,226.14,226.03,8.28339735]
[1733147983103,6.6462,226.14,226.04,8.28339735]
[1733147983884,6.6462,226.14,226.03,8.28339735]
[1733147984096,6.6462,226.14,226.0,0.88233803]
[1733147984285,6.6462,226.14,226.02,8.28339735]
[1733147984607,6.6462,226.14,226.0,0.88233803]
[1733147984781,20.0,226.11,225.99,15.7061]
[1733147985108,20.0,226.11,226.0,8.28339735]
[1733147986387,24.027864,226.1,225.99,8.28339735]
[1733147987178,24.027864,226.1,225.96,0.88247266]
[1733147987179,24.027864,226.1,226.0,8.28339735]
[1733147987798,24.027864,226.1,226.01,8.28339735]
[1733147988186,20.0,226.11,226.01,8.28339735]
[1733147990317,24.153354,226.1,226.0,8.28339735]
[1733147990515,0.37647,226.1,226.0,8.28339735]
[1733147990807,20.0,226.07,225.98,8.28339735]
[1733147991192,20.0,226.07,225.99,8.28339735]
[1733147992797,20.0,226.07,226.0,8.28339735]
[1733147993409,20.0,226.07,226.01,8.28339735]
[1733147993705,20.0,226.07,226.02,8.28339735]
[1733147994409,0.5383,226.09,226.02,8.28339735]
[1733147994604,0.12549,226.1,226.02,8.28339735]
[1733147995214,20.0,226.08,226.01,8.28339735]
[1733147995411,20.0,226.08,226.02,8.28339735]
[1733147995582,7.1845,226.14,226.07,8.28339735]
[1733147995781,7.1845,226.14,226.03,0.88247919]
[1733147995782,7.1845,226.14,226.08,8.28339735]
[1733147995998,7.1845,226.14,226.07,8.28339735]
[1733147996502,7.1845,226.14,226.06,8.28339735]
[1733147999936,6.3621,226.19,226.06,8.28339735]
[1733148000110,6.3621,226.19,226.03,0.88247919]
[1733148000111,6.3621,226.19,226.12,8.28339735]
[1733148000412,2.1719748,226.2,226.13,8.28339735]
[1733148000589,2.1719748,226.2,226.07,0.88221856]
[1733148000590,1.0667748,226.2,226.12,8.28339735]
[1733148001013,1.0667748,226.2,226.13,8.28339735]
[1733148002111,1.0667748,226.2,226.14,8.28339735]
[1733148002312,1.0667748,226.2,226.13,8.28339735]
[1733148002519,0.5284748,226.2,226.15,8.28339735]
[1733148002696,0.5284748,226.2,226.14,8.28339735]
[1733148002904,0.5284748,226.2,226.06,15.4919]
[1733148002905,0.25098,226.19,226.1,8.28339735]
[1733148003115,0.25098,226.19,226.11,8.28339735]
[1733148003321,0.5284748,226.2,226.12,8.28339735]
[1733148003799,0.5284748,226.2,226.14,8.28339735]
[1733148004388,0.5284748,226.2,226.08,0.88210074]
[1733148004614,0.5284748,226.2,226.14,8.28339735]
[1733148005612,0.5284748,226.2,226.13,8.28339735]
[1733148005995,0.5284748,226.2,226.14,8.28339735]
[1733148007019,0.5284748,226.2,226.16,8.28339735]
[1733148007443,0.5284748,226.2,226.19,8.28339735]
[1733148007797,0.5284748,226.2,226.13,0.88179652]
[1733148007998,0.5284748,226.2,226.19,8.28339735]
[1733148008197,0.5284748,226.2,226.18,8.28339735]
[1733148008399,0.5284748,226.2,226.19,8.28339735]
[1733148010204,0.5284748,226.2,226.19,24.32969735]
[1733148010521,0.5284748,226.2,226.19,25.21129904]
[1733148011096,0.5284748,226.2,226.19,16.0463]
[1733148011305,0.5284748,226.2,226.19,24.32969735]
[1733148013028,0.5284748,226.2,226.17,8.28339735]
[1733148013608,0.5284748,226.2,226.18,8.28339735]
[1733148014626,0.5284748,226.2,226.13,15.90200108]
[1733148014811,0.5284748,226.2,226.19,8.28339735]
[1733148015317,0.5284748,226.2,226.18,8.28339735]
[1733148015627,0.5284748,226.2,226.13,15.0202]
[1733148015931,0.5284748,226.2,226.09,0.88201701]
[1733148016109,0.5284748,226.2,226.11,8.28339735]
[1733148016829,0.5284748,226.2,226.13,8.28339735]
[1733148017005,0.5284748,226.2,226.16,8.28339735]
[1733148017331,0.5284748,226.2,226.13,8.28339735]
[1733148017530,0.5284748,226.2,226.12,8.28339735]
[1733148018438,0.5284748,226.2,226.13,8.28339735]
[1733148019138,0.5284748,226.2,226.14,8.28339735]
[1733148019429,0.5284748,226.2,226.13,8.28339735]
[1733148019636,0.5284748,226.2,226.14,8.28339735]
[1733148020139,0.5284748,226.2,226.09,0.88201701]
[1733148020339,0.5284748,226.2,226.13,8.28339735]
[1733148020509,0.5284748,226.2,226.11,8.28339735]
[1733148020906,0.25098,226.19,226.09,8.28339735]
[1733148021139,0.25098,226.19,226.1,8.28339735]
[1733148021729,0.25098,226.19,226.11,8.28339735]
[1733148023513,0.5284748,226.2,226.14,8.28339735]
[1733148023921,0.5284748,226.2,226.16,8.28339735]
[1733148024241,0.5284748,226.2,226.14,8.28339735]
[1733148024422,0.5284748,226.2,226.13,8.28339735]
[1733148024621,0.66379,226.19,226.09,0.88198082]
[1733148024951,0.12549,226.17,226.06,8.28339735]
[1733148025135,0.12549,226.17,226.05,20.0]
[1733148025436,20.0,226.16,226.06,8.28339735]
[1733148025826,0.25098,226.15,226.06,8.28339735]
[1733148026025,0.25098,226.15,226.03,0.88214276]
[1733148026026,0.25098,226.13,226.03,8.28339735]
[1733148026332,0.25098,226.13,226.04,8.28339735]
[1733148026518,1.1054,226.15,226.05,8.28339735]
[1733148026519,0.12549,226.14,226.05,8.28339735]
[1733148026940,0.12549,226.15,226.05,8.28339735]
[1733148027241,20.0,226.16,226.05,0.88230776]
[1733148027540,20.0,226.16,226.07,8.28339735]
[1733148027719,20.0,226.16,226.09,8.28339735]
[1733148028145,20.0,226.16,226.08,8.28339735]
[1733148028642,20.0,226.16,226.12,4.30400724]
[1733148029442,0.5284748,226.2,226.13,8.28339735]
[1733148029737,0.5284748,226.2,226.16,8.28339735]
[1733148029987,0.5284748,226.2,226.16,4.30400724]
[1733148030239,0.5284748,226.2,226.14,0.88201723]
[1733148030240,0.25098,226.19,226.14,4.30400724]
[1733148030540,0.25098,226.19,226.13,4.30400724]
[1733148030713,6.4816,226.18,226.13,4.30400724]
[1733148030917,6.4816,226.18,226.11,4.30400724]
[1733148030918,0.12549,226.15,226.11,4.30400724]
[1733148031117,20.25098,226.15,226.1,4.30400724]
[1733148031324,0.12549,226.14,226.1,4.30400724]
[1733148031736,0.12549,226.14,226.09,4.30400724]
[1733148032041,0.12549,226.14,226.07,4.30400724]
[1733148032235,0.12549,226.14,226.09,4.30400724]
[1733148032734,0.12549,226.14,226.1,4.30400724]
[1733148033342,0.25098,226.12,226.1,4.30400724]
[1733148033641,0.25098,226.12,225.98,7.15205754]
[1733148033642,0.12549,226.11,225.99,12.71639735]
[1733148034439,0.12549,226.11,226.03,8.28339735]
[1733148034956,0.12549,226.11,226.02,8.28339735]
[1733148035240,0.12549,226.13,226.04,8.28339735]
[1733148035551,0.12549,226.13,226.03,8.28339735]
[1733148035552,0.37647,226.13,226.03,8.28339735]
[1733148035930,0.37647,226.13,226.02,8.28339735]
[1733148036521,0.37647,226.13,225.98,6.2696]
[1733148036746,0.37647,226.13,226.0,8.28339735]
[1733148036926,0.37647,226.13,226.01,8.28339735]
[1733148037127,0.37647,226.13,226.0,8.28339735]
[1733148037327,0.37647,226.11,225.98,14.55299735]
[1733148037649,0.37647,226.11,225.99,8.28339735]
[1733148037949,0.37647,226.11,225.98,7.15227282]
[1733148038121,0.37647,226.11,226.02,8.28339735]
[1733148038335,20.0,226.15,226.04,8.28339735]
[1733148038648,1.35648,226.14,225.95,16.6084]
[1733148038937,1.35648,226.14,225.99,8.28339735]
[1733148039449,0.25098,226.12,225.95,16.6084]
[1733148039738,0.12549,226.11,225.98,4.433]
[1733148040120,0.12549,226.11,225.99,8.28339735]
[1733148040351,0.12549,226.12,225.99,8.28339735]
[1733148040647,0.12549,226.12,226.02,8.28339735]
[1733148040951,20.0,226.15,226.04,8.28339735]
[1733148041745,0.25098,226.14,226.02,8.28339735]
[1733148042051,0.25098,226.14,226.01,8.28339735]
[1733148042238,20.0,226.09,225.95,8.28339735]
[1733148042544,0.37647,226.08,225.95,8.28339735]
[1733148043043,0.37647,226.08,225.98,8.28339735]
[1733148043342,0.37647,226.08,225.93,7.07966221]
[1733148043343,0.37647,226.06,225.93,6.1969]
[1733148043547,0.37647,226.06,225.91,8.28339735]
[1733148043751,0.25098,226.01,225.92,4.433]
[1733148043944,0.25098,226.01,225.92,8.28339735]
[1733148044251,20.0,226.02,225.94,8.28339735]
[1733148044456,0.5383,226.07,225.98,8.28339735]
[1733148044749,20.5383,226.07,225.99,8.28339735]
[1733148045553,20.5383,226.07,225.99,12.93432592]
[1733148047338,6.4748,226.1,226.0,12.93432592]
[1733148047551,0.12549,226.09,226.0,12.93432592]
[1733148047737,0.37647,226.09,226.01,12.93432592]
[1733148048046,0.5383,226.12,226.05,12.93432592]
[1733148048456,0.5383,226.12,226.06,12.93432592]
[1733148048630,0.5383,226.12,226.05,12.93432592]
[1733148049054,0.5383,226.12,226.04,12.93432592]
[1733148049433,0.12549,226.11,226.04,12.93432592]
[1733148049750,0.12549,226.11,226.01,4.433]
[1733148049751,0.37647,226.11,226.0,16.442]
[1733148049944,1.48207,226.11,226.0,29.37632592]
[1733148050143,1.48207,226.11,226.01,12.93432592]
[1733148050650,1.48207,226.11,226.0,29.37632592]
[1733148051147,1.48207,226.11,226.03,12.93432592]
[1733148051352,0.37647,226.11,226.02,12.93432592]
[1733148051534,0.37647,226.11,226.0,12.93432592]
[1733148051946,0.37647,226.11,226.02,12.93432592]
[1733148052257,0.5383,226.12,226.04,12.93432592]
[1733148052477,0.5383,226.12,226.03,12.93432592]
[1733148052828,0.12549,226.11,226.03,12.93432592]
[1733148053033,0.25098,226.11,226.02,12.93432592]
[1733148053247,0.25098,226.11,226.01,12.93432592]
[1733148053952,0.12549,226.09,225.99,12.93432592]
[1733148054153,0.12549,226.09,225.97,12.93432592]
[1733148054368,0.12549,226.09,225.96,12.93432592]
[1733148054532,0.12549,226.09,225.95,15.0668]
[1733148055257,0.5383,226.12,225.95,28.00112592]
[1733148055258,0.37647,226.07,225.95,28.00112592]
[1733148055448,0.37647,226.07,225.95,15.0668]
[1733148055634,0.37647,226.07,225.93,12.93432592]
[1733148056152,0.37647,226.07,225.94,12.93432592]
[1733148056537,0.37647,226.07,225.95,12.93432592]
[1733148057159,0.37647,226.07,225.94,12.93432592]
[1733148058047,0.37647,226.05,225.93,12.93432592]
[1733148058358,0.37647,226.05,225.94,12.93432592]
[1733148058549,0.37647,226.05,225.95,12.93432592]
[1733148058939,6.276,226.06,225.98,12.93432592]
[1733148059141,20.0,226.09,225.99,12.93432592]
[1733148059447,0.37647,226.08,225.99,12.93432592]
[1733148059647,0.25098,226.08,225.99,12.93432592]
[1733148060442,0.25098,226.08,226.0,12.93432592]
[1733148060642,20.25098,226.08,225.99,12.93432592]
[1733148061438,20.25098,226.08,225.98,12.93432592]
[1733148061856,0.12549,226.07,225.97,12.93432592]
[1733148062049,0.12549,226.07,225.93,12.93432592]
[1733148062348,0.12549,226.05,225.92,12.93432592]
[1733148062642,0.12549,226.05,225.9,35.73312592]
[1733148062850,0.37647,226.03,225.9,12.93432592]
[1733148064044,1.48247,226.03,225.91,12.93432592]
[1733148064247,1.48247,226.03,225.86,11.95115009]
[1733148064248,21.48247,226.03,225.9,12.93432592]
[1733148064541,21.48247,226.03,225.89,12.93432592]
[1733148064744,0.25098,226.01,225.89,12.93432592]
[1733148064963,0.12549,226.0,225.9,12.93432592]
[1733148065860,0.12549,225.97,225.87,12.93432592]
[1733148066246,0.12549,225.97,225.86,12.93432592]
[1733148067146,0.12549,225.95,225.85,12.93432592]
[1733148068077,0.12549,225.95,225.84,12.93432592]
[1733148068276,0.12549,225.95,225.8,15.781]
[1733148068277,0.12549,225.9,225.8,12.93432592]
[1733148068446,0.12549,225.9,225.79,12.93432592]
[1733148068641,0.12549,225.9,225.8,12.93432592]
[1733148069048,0.12549,225.9,225.81,12.93432592]
[1733148070151,0.12549,225.9,225.8,12.93432592]
[1733148070366,0.12549,225.9,225.76,23.776884]
[1733148070367,0.12549,225.9,225.78,12.93432592]
[1733148070544,0.12549,225.9,225.79,4.427]
[1733148071081,0.37647,225.88,225.79,4.427]
[1733148071651,0.12549,225.85,225.75,17.36132592]
[1733148071945,0.12549,225.85,225.74,12.93432592]
[1733148072180,0.12549,225.85,225.75,12.93432592]
[1733148072651,0.12549,225.85,225.73,12.93432592]
[1733148072855,0.12549,225.85,225.7,4.427]
[1733148072856,0.12549,225.85,225.72,12.93432592]
[1733148073248,20.25098,225.86,225.72,12.93432592]
[1733148073249,0.37647,225.83,225.72,12.93432592]
[1733148073869,0.37647,225.83,225.71,17.36132592]
[1733148074170,0.37647,225.83,225.73,12.93432592]
[1733148074476,0.12549,225.85,225.79,12.93432592]
[1733148074643,0.5383,225.89,225.81,12.93432592]
[1733148074949,0.5383,225.89,225.82,12.93432592]
[1733148075162,0.5383,225.89,225.84,12.93432592]
[1733148075543,0.5383,225.89,225.79,23.776884]
[1733148075544,0.5383,225.89,225.83,12.93432592]
[1733148075771,6.0664,225.92,225.84,12.93432592]
[1733148076859,0.5383,225.95,225.88,12.93432592]
[1733148077155,6.4997,225.97,225.88,12.93432592]
[1733148077343,6.4997,225.97,225.9,12.93432592]
[1733148077541,6.4997,225.97,225.83,13.81744491]
[1733148077542,6.4997,225.97,225.91,12.93432592]
[1733148077772,0.5383,226.0,225.91,12.93432592]
[1733148078456,6.3621,226.02,225.92,12.93432592]
[1733148078654,6.3621,226.02,225.93,12.93432592]
[1733148078881,6.3621,226.02,225.92,12.93432592]
[1733148079822,20.0,225.99,225.92,12.93432592]
[1733148080281,20.0,225.99,225.91,12.93432592]
[1733148080984,0.12549,226.01,225.93,12.93432592]
[1733148081182,0.12549,226.01,225.88,29.04332592]
[1733148081382,0.12549,226.01,225.75,5.0]
[1733148081383,0.12549,225.97,225.86,12.93432592]
[1733148081584,0.12549,225.97,225.85,12.93432592]
[1733148081788,0.12549,225.94,225.85,12.93432592]
[1733148082192,0.25098,225.94,225.84,12.93432592]
[1733148082406,0.37647,225.93,225.82,29.04332592]
[1733148082776,0.37647,225.93,225.85,12.93432592]
[1733148082981,0.12549,225.93,225.86,12.93432592]
[1733148083590,0.25098,225.94,225.86,12.93432592]
[1733148083791,0.25098,225.94,225.88,12.93432592]
[1733148084606,0.25098,225.94,225.86,12.93432592]
[1733148084902,0.25098,225.94,225.87,23.776884]